[Event "29th Czech Open-Rapid 2018"]
[Site "Pardubice"]
[Date "2018.07.19"]
[Round "4"]
[White "Zdrazil, Jan"]
[Black "Buchcar, Tomas"]
[Result "1/2-1/2"]
[ECO "B43"]
[WhiteElo "1809"]
[BlackElo "2174"]
[Annotator "NA"]
[PlyCount "74"]
[EventDate "2018.07.18"]
[EventType "swiss"]
[EventCountry "CZE"]
[SourceTitle "playchess.com"]
[Source "ChessBase"]
[SourceQuality "1"]
[TimeControl "900+10"]

1. e4 {[%emt 0:00:00]} c5 {[%emt 0:00:00]} 2. Nf3 {[%emt 0:00:00]} e6 {[%emt 0:00:00]} 3. d4 {[%emt 0:00:00]} cxd4 {[%emt 0:00:00]} 4. Nxd4 {[%emt 0:00:00]} a6 {[%emt 0:00:00]} 5. Nc3 {[%emt 0:00:00]} b5 {[%emt 0:00:02]} 6. g3 {[%emt 0:00:02]} Bb7 {[%emt 0:00:02]} 7. Bg2 {[%emt 0:00:01]} Qc7 {[%emt 0:00:07]} 8. O-O {[%emt 0:00:07]} d6 {[%emt 0:00:04]} 9. Re1 {[%emt 0:00:06]} Nf6 {[%emt 0:00:11]} 10. a4 {[%emt 0:00:21]} b4 {[%emt 0:00:18]} 11. Nd5 {[%emt 0:00:02]} exd5 {[%emt 0:01:39]} 12. exd5+ {[%emt 0:00:00]} Kd8 {[%emt 0:00:25]} 13. Bg5 {[%emt 0:00:19]} Nbd7 {[%emt 0:02:08]} 14. Nc6+ {[%emt 0:04:37]} Bxc6 {[%emt 0:00:50]} 15. dxc6 {[%emt 0:00:01]} Nc5 {[%emt 0:00:47]} 16. Qd5 {[%emt 0:06:49]} Ne6 {[%emt 0:03:22]} 17. Bxf6+ {[%emt 0:00:32]} gxf6 {[%emt 0:00:01]} 18. Rad1 {[%emt 0:01:24]} Be7 {[%emt 0:02:08]} 19. f4 {[%emt 0:00:26]} Rf8 {[%emt 0:04:05]} 20. Qh5 {[%emt 0:01:02]} Rc8 {[%emt 0:00:44]} 21. Qxh7 {[%emt 0:00:09]} Qb6+ {[%emt 0:00:01]} 22. Kh1 {[%emt 0:00:03]} Rxc6 {[%emt 0:00:01]} 23. Bxc6 {[%emt 0:00:43]} Qxc6+ {[%emt 0:00:00]} 24. Qe4 {[%emt 0:00:19]} Qxe4+ {[%emt 0:00:33]} 25. Rxe4 {[%emt 0:00:01]} a5 {[%emt 0:00:01]} 26. Rd5 {[%emt 0:00:20]} Nc5 {[%emt 0:00:15]} 27. Rc4 {[%emt 0:00:30]} Kc7 {[%emt 0:00:11]} 28. b3 {[%emt 0:00:02]} Kc6 {[%emt 0:00:34]} 29. Rf5 {[%emt 0:00:23]} Rd8 {[%emt 0:00:18]} 30. h4 {[%emt 0:00:16]} d5 {[%emt 0:00:45]} 31. Rd4 {[%emt 0:00:01]} Ne4 {[%emt 0:00:02]} 32. Kg2 {[%emt 0:00:12]} Bc5 {[%emt 0:00:03]} 33. Rd3 {[%emt 0:00:59]} Bf2 {[%emt 0:00:22]} 34. h5 {[%emt 0:00:26]} Rg8 {[%emt 0:00:26]} 35. h6 {[%emt 0:00:25]} Rh8 {[%emt 0:00:12]} 36. Rh5 {[%emt 0:00:03]} Bc5 {[%emt 0:00:09]} 37. Rdxd5 {[%emt 0:00:08]} Bb6 1/2-1/2

[Event "29th Czech Open-Rapid 2018"]
[Site "Pardubice"]
[Date "2018.07.19"]
[Round "4"]
[White "Effenberger, Adam"]
[Black "Brejnik, Gustav"]
[Result "0-1"]
[ECO "B18"]
[WhiteElo "1784"]
[BlackElo "1951"]
[Annotator "NA"]
[PlyCount "80"]
[EventDate "2018.07.18"]
[EventType "swiss"]
[EventCountry "CZE"]
[SourceTitle "playchess.com"]
[Source "ChessBase"]
[SourceQuality "1"]
[TimeControl "900+10"]

1. e4 {[%emt 0:00:00]} c6 {[%emt 0:00:00]} 2. d4 {[%emt 0:00:00]} d5 {[%emt 0:00:00]} 3. Nc3 {[%emt 0:00:05]} dxe4 {[%emt 0:00:00]} 4. Nxe4 {[%emt 0:00:08]} Bf5 {[%emt 0:00:00]} 5. Ng3 {[%emt 0:00:11]} Bg6 {[%emt 0:00:00]} 6. N1e2 {[%emt 0:00:19]} Nf6 {[%emt 0:00:11]} 7. Nf4 {[%emt 0:00:10]} Nbd7 {[%emt 0:00:07]} 8. Bc4 {[%emt 0:00:35]} Qc7 {[%emt 0:00:02]} 9. O-O {[%emt 0:00:58]} e6 {[%emt 0:00:03]} 10. Re1 {[%emt 0:00:19]} Be7 {[%emt 0:00:06]} 11. Bxe6 {[%emt 0:00:24]} fxe6 {[%emt 0:00:13]} 12. Nxe6 {[%emt 0:00:06]} Qb6 {[%emt 0:03:24]} 13. Nxg7+ {[%emt 0:00:12]} Kf7 {[%emt 0:00:06]} 14. N7f5 {[%emt 0:00:23]} Rhe8 {[%emt 0:00:41]} 15. Bf4 {[%emt 0:05:45]} Bb4 {[%emt 0:03:59]} 16. c3 {[%emt 0:00:40]} Rxe1+ {[%emt 0:00:02]} 17. Qxe1 {[%emt 0:00:08]} Re8 {[%emt 0:00:02]} 18. Qd2 {[%emt 0:00:32]} Bf8 {[%emt 0:00:24]} 19. Nd6+ {[%emt 0:01:31]} Bxd6 {[%emt 0:00:07]} 20. Bxd6 {[%emt 0:00:02]} Re6 {[%emt 0:00:56]} 21. Ba3 {[%emt 0:00:42]} Qb5 {[%emt 0:01:26]} 22. Re1 {[%emt 0:00:11]} Qd5 {[%emt 0:00:02]} 23. b3 {[%emt 0:01:09]} b5 {[%emt 0:00:22]} 24. f4 {[%emt 0:00:53]} Ne4 {[%emt 0:01:10]} 25. Nxe4 {[%emt 0:00:46]} Rxe4 {[%emt 0:00:26]} 26. g4 {[%emt 0:00:23]} Nf6 {[%emt 0:00:40]} 27. h3 {[%emt 0:00:32]} Rxe1+ {[%emt 0:00:27]} 28. Qxe1 {[%emt 0:00:01]} Qe4 {[%emt 0:00:01]} 29. Qf2 {[%emt 0:00:53]} Qb1+ {[%emt 0:00:08]} 30. Kh2 {[%emt 0:00:16]} Qc2 {[%emt 0:00:33]} 31. Qxc2 {[%emt 0:00:58]} Bxc2 {[%emt 0:00:02]} 32. Bc5 {[%emt 0:00:02]} a6 {[%emt 0:00:09]} 33. Kg2 {[%emt 0:00:19]} Nd5 {[%emt 0:00:14]} 34. Kf3 {[%emt 0:00:37]} Nxc3 {[%emt 0:00:11]} 35. f5 {[%emt 0:00:26]} a5 {[%emt 0:01:18]} 36. Bb6 {[%emt 0:00:08]} Nxa2 {[%emt 0:00:59]} 37. Bxa5 {[%emt 0:00:02]} Bxb3 {[%emt 0:00:01]} 38. Ke4 {[%emt 0:00:11]} Bc2+ {[%emt 0:00:22]} 39. Ke5 {[%emt 0:00:03]} b4 {[%emt 0:00:01]} 40. Kd6 {[%emt 0:00:09]} b3 {[%emt 0:00:05]} 0-1

[Event "29th Czech Open-Rapid 2018"]
[Site "Pardubice"]
[Date "2018.07.19"]
[Round "4"]
[White "Tarun, V Kanth"]
[Black "Zaitsev, Alexander"]
[Result "1-0"]
[ECO "E20"]
[WhiteElo "1771"]
[BlackElo "2335"]
[Annotator "NA"]
[PlyCount "121"]
[EventDate "2018.07.18"]
[EventType "swiss"]
[EventCountry "CZE"]
[SourceTitle "playchess.com"]
[Source "ChessBase"]
[SourceQuality "1"]
[TimeControl "900+10"]

1. d4 {[%emt 0:00:00]} e6 {[%emt 0:00:00]} 2. c4 {[%emt 0:00:00]} Nf6 {[%emt 0:00:00]} 3. Nc3 {[%emt 0:00:00]} Bb4 {[%emt 0:00:00]} 4. f3 {[%emt 0:00:00]} Nc6 {[%emt 0:00:00]} 5. a3 {[%emt 0:00:12]} Bxc3+ {[%emt 0:00:00]} 6. bxc3 {[%emt 0:00:01]} b6 {[%emt 0:00:03]} 7. e4 {[%emt 0:00:02]} Ba6 {[%emt 0:00:14]} 8. Bd3 {[%emt 0:00:16]} Na5 {[%emt 0:00:03]} 9. Qe2 {[%emt 0:00:08]} d6 {[%emt 0:01:03]} 10. Nh3 {[%emt 0:00:30]} Qd7 {[%emt 0:00:49]} 11. a4 {[%emt 0:00:25]} Nb3 {[%emt 0:04:43]} 12. Rb1 {[%emt 0:00:16]} Nxc1 {[%emt 0:00:01]} 13. Rxc1 {[%emt 0:00:01]} e5 {[%emt 0:02:12]} 14. O-O {[%emt 0:00:20]} O-O {[%emt 0:00:18]} 15. f4 {[%emt 0:02:04]} Qe7 {[%emt 0:00:01]} 16. g4 {[%emt 0:01:56]} Nd7 {[%emt 0:00:51]} 17. g5 {[%emt 0:01:05]} f6 {[%emt 0:01:55]} 18. Qg4 {[%emt 0:02:17]} Rae8 {[%emt 0:01:50]} 19. f5 {[%emt 0:01:13]} fxg5 {[%emt 0:01:11]} 20. Nxg5 {[%emt 0:00:10]} Nf6 {[%emt 0:00:02]} 21. Qh3 {[%emt 0:00:18]} Bc8 {[%emt 0:00:13]} 22. d5 {[%emt 0:00:35]} h6 {[%emt 0:00:35]} 23. Nf3 {[%emt 0:00:15]} Qf7 {[%emt 0:00:33]} 24. Nh4 {[%emt 0:01:11]} Nh5 {[%emt 0:00:01]} 25. Qg4 {[%emt 0:00:55]} Nf4 {[%emt 0:00:26]} 26. Rxf4 {[%emt 0:00:20]} exf4 {[%emt 0:00:01]} 27. Ng6 {[%emt 0:00:01]} Qf6 {[%emt 0:00:18]} 28. Nxf8 {[%emt 0:00:12]} Rxf8 {[%emt 0:00:08]} 29. Qxf4 {[%emt 0:00:01]} Bd7 {[%emt 0:00:08]} 30. Kh1 {[%emt 0:00:54]} Bxa4 31. Rg1 {[%emt 0:00:01]} Be8 {[%emt 0:00:16]} 32. Bb1 {[%emt 0:02:09]} Kh8 {[%emt 0:00:48]} 33. Qg3 {[%emt 0:00:00]} a5 {[%emt 0:00:10]} 34. Re1 {[%emt 0:00:11]} Qe5 {[%emt 0:00:31]} 35. Qxe5 {[%emt 0:00:10]} dxe5 {[%emt 0:00:01]} 36. Bc2 {[%emt 0:00:21]} Rf6 {[%emt 0:00:04]} 37. Ra1 {[%emt 0:00:15]} Kg8 {[%emt 0:00:14]} 38. Ba4 {[%emt 0:00:10]} Bxa4 {[%emt 0:00:09]} 39. Rxa4 {[%emt 0:00:01]} Kf8 {[%emt 0:00:04]} 40. c5 {[%emt 0:00:01]} Ke7 {[%emt 0:00:30]} 41. Kg2 {[%emt 0:00:19]} g6 {[%emt 0:00:10]} 42. fxg6 {[%emt 0:00:01]} Rxg6+ {[%emt 0:00:01]} 43. Kf3 {[%emt 0:00:39]} Kd7 {[%emt 0:00:03]} 44. c4 {[%emt 0:00:25]} h5 {[%emt 0:01:15]} 45. cxb6 {[%emt 0:00:01]} cxb6 {[%emt 0:00:00]} 46. c5 {[%emt 0:00:00]} Kc7 {[%emt 0:00:20]} 47. c6 {[%emt 0:01:28]} Rg8 {[%emt 0:00:10]} 48. Ra1 {[%emt 0:00:05]} Ra8 {[%emt 0:00:12]} 49. Rg1 {[%emt 0:00:38]} a4 {[%emt 0:00:01]} 50. Rg7+ {[%emt 0:00:01]} Kd6 {[%emt 0:00:02]} 51. Rd7+ {[%emt 0:00:08]} Kc5 {[%emt 0:00:01]} 52. c7 {[%emt 0:00:00]} Rc8 {[%emt 0:00:28]} 53. d6 {[%emt 0:00:23]} Kc6 {[%emt 0:00:18]} 54. Rd8 {[%emt 0:00:07]} Kb7 {[%emt 0:00:01]} 55. d7 {[%emt 0:00:10]} Rxc7 {[%emt 0:00:01]} 56. Rb8+ Kxb8 57. d8=Q+ {[%emt 0:00:02]} Kb7 {[%emt 0:00:07]} 58. Qd5+ {[%emt 0:00:03]} Ka7 {[%emt 0:00:35]} 59. Qxe5 {[%emt 0:00:15]} Rf7+ {[%emt 0:00:12]} 60. Ke3 {[%emt 0:00:02]} Rb7 {[%emt 0:00:25]} 61. Qb5 {[%emt 0:00:04]} 1-0

[Event "29th Czech Open-Rapid 2018"]
[Site "Pardubice"]
[Date "2018.07.19"]
[Round "4"]
[White "Alekseev, Mikhail"]
[Black "Mlcak, Viktor"]
[Result "0-1"]
[ECO "B02"]
[WhiteElo "1752"]
[BlackElo "1881"]
[Annotator "NA"]
[PlyCount "87"]
[EventDate "2018.07.18"]
[EventType "swiss"]
[EventCountry "CZE"]
[SourceTitle "playchess.com"]
[Source "ChessBase"]
[SourceQuality "1"]
[TimeControl "900+10"]

1. e4 {[%emt 0:00:00]} Nf6 {[%emt 0:00:00]} 2. Nc3 {[%emt 0:00:00]} d5 {[%emt 0:00:00]} 3. exd5 {[%emt 0:00:04]} Nxd5 {[%emt 0:00:00]} 4. Bc4 {[%emt 0:00:03]} Nb6 {[%emt 0:00:00]} 5. Be2 {[%emt 0:00:28]} e5 {[%emt 0:00:11]} 6. Bg4 {[%emt 0:00:56]} Nc6 {[%emt 0:00:56]} 7. Bxc8 {[%emt 0:00:26]} Rxc8 {[%emt 0:00:19]} 8. Nge2 {[%emt 0:00:09]} Be7 {[%emt 0:00:37]} 9. d3 {[%emt 0:00:21]} O-O {[%emt 0:00:03]} 10. O-O {[%emt 0:00:09]} f5 {[%emt 0:00:20]} 11. f4 {[%emt 0:00:48]} Bc5+ {[%emt 0:00:37]} 12. Kh1 {[%emt 0:00:02]} Be7 {[%emt 0:02:44]} 13. Qe1 {[%emt 0:00:53]} Bh4 {[%emt 0:01:04]} 14. Qd1 {[%emt 0:00:37]} a6 {[%emt 0:00:15]} 15. Ng1 {[%emt 0:01:30]} Qd7 {[%emt 0:02:14]} 16. Nf3 {[%emt 0:00:42]} Bf6 {[%emt 0:00:06]} 17. fxe5 {[%emt 0:00:32]} Nxe5 {[%emt 0:00:21]} 18. Nxe5 {[%emt 0:00:13]} Bxe5 {[%emt 0:00:02]} 19. Bf4 {[%emt 0:00:01]} Rce8 {[%emt 0:01:53]} 20. Qf3 {[%emt 0:00:09]} c6 {[%emt 0:00:53]} 21. Rae1 {[%emt 0:00:35]} Qd6 {[%emt 0:02:00]} 22. Bxe5 {[%emt 0:04:22]} Rxe5 {[%emt 0:00:01]} 23. Rxe5 {[%emt 0:00:33]} Qxe5 {[%emt 0:00:01]} 24. Qf2 {[%emt 0:00:04]} Nd7 {[%emt 0:01:48]} 25. Re1 {[%emt 0:00:07]} Qd6 {[%emt 0:01:04]} 26. Qe3 {[%emt 0:00:19]} Kh8 {[%emt 0:00:50]} 27. Ne2 {[%emt 0:00:15]} Nf6 {[%emt 0:00:14]} 28. Ng3 {[%emt 0:00:44]} Ng4 {[%emt 0:00:17]} 29. Qe7 {[%emt 0:00:16]} Qb8 {[%emt 0:00:28]} 30. h3 {[%emt 0:00:56]} Nh6 {[%emt 0:00:27]} 31. Nh5 {[%emt 0:00:29]} Rf7 {[%emt 0:00:10]} 32. Qe6 {[%emt 0:00:31]} Qf8 {[%emt 0:00:10]} 33. Nf4 {[%emt 0:00:39]} Ng8 {[%emt 0:00:11]} 34. Qb3 {[%emt 0:00:15]} Nf6 {[%emt 0:00:05]} 35. Qe6 {[%emt 0:00:25]} Nd7 {[%emt 0:00:17]} 36. d4 {[%emt 0:00:13]} g6 {[%emt 0:00:08]} 37. c3 {[%emt 0:00:03]} Nf6 {[%emt 0:00:12]} 38. Qe5 {[%emt 0:00:10]} Kg8 {[%emt 0:00:08]} 39. d5 {[%emt 0:00:27]} cxd5 {[%emt 0:00:02]} 40. Nxd5 {[%emt 0:00:03]} Nxd5 {[%emt 0:00:10]} 41. Qxd5 {[%emt 0:00:02]} Kg7 {[%emt 0:00:14]} 42. Re6 {[%emt 0:00:09]} f4 {[%emt 0:00:11]} 43. Qe5+ {[%emt 0:00:03]} Kg8 {[%emt 0:00:03]} 44. Re8 {[%emt 0:00:03]} 0-1

[Event "29th Czech Open-Rapid 2018"]
[Site "Pardubice"]
[Date "2018.07.19"]
[Round "4"]
[White "Salykin, Aleksandr"]
[Black "Bystrov, Sergej Mikhailovich"]
[Result "1-0"]
[ECO "A41"]
[WhiteElo "1745"]
[BlackElo "2121"]
[Annotator "NA"]
[PlyCount "83"]
[EventDate "2018.07.18"]
[EventType "swiss"]
[EventCountry "CZE"]
[SourceTitle "playchess.com"]
[Source "ChessBase"]
[SourceQuality "1"]
[TimeControl "900+10"]

1. d4 {[%emt 0:00:59]} d6 {[%emt 0:00:00]} 2. Bf4 {[%emt 0:00:02]} Nf6 {[%emt 0:00:00]} 3. Nf3 {[%emt 0:00:01]} c6 {[%emt 0:00:19]} 4. e3 {[%emt 0:00:14]} g6 {[%emt 0:00:01]} 5. c3 {[%emt 0:00:07]} Bg7 {[%emt 0:00:02]} 6. h3 {[%emt 0:00:03]} O-O {[%emt 0:00:02]} 7. Be2 {[%emt 0:00:03]} Nbd7 {[%emt 0:00:08]} 8. O-O {[%emt 0:00:05]} Qe8 {[%emt 0:00:20]} 9. Bh2 {[%emt 0:00:10]} e5 {[%emt 0:00:12]} 10. Re1 {[%emt 0:00:11]} Qe7 {[%emt 0:00:06]} 11. a4 {[%emt 0:00:24]} Rd8 {[%emt 0:03:12]} 12. Na3 {[%emt 0:00:37]} e4 {[%emt 0:00:05]} 13. Nd2 {[%emt 0:00:03]} d5 {[%emt 0:00:03]} 14. c4 {[%emt 0:00:34]} Nb8 {[%emt 0:04:46]} 15. cxd5 {[%emt 0:03:27]} Nxd5 {[%emt 0:01:10]} 16. Bc4 {[%emt 0:00:58]} f5 {[%emt 0:00:11]} 17. Qb3 {[%emt 0:01:22]} Be6 {[%emt 0:00:12]} 18. a5 {[%emt 0:01:47]} Bf7 {[%emt 0:01:15]} 19. Rac1 {[%emt 0:01:56]} Bf8 {[%emt 0:00:36]} 20. Nc2 {[%emt 0:01:15]} b5 {[%emt 0:01:33]} 21. axb6 {[%emt 0:00:21]} Nxb6 {[%emt 0:00:02]} 22. Bxf7+ {[%emt 0:00:57]} Qxf7 {[%emt 0:00:01]} 23. Qxf7+ {[%emt 0:01:32]} Kxf7 {[%emt 0:00:01]} 24. Ra1 {[%emt 0:00:02]} c5 {[%emt 0:00:12]} 25. Bc7 {[%emt 0:00:17]} Nc6 {[%emt 0:00:13]} 26. Bxd8 {[%emt 0:00:10]} Rxd8 {[%emt 0:00:02]} 27. Nb3 {[%emt 0:00:14]} c4 {[%emt 0:00:29]} 28. Na5 {[%emt 0:00:16]} Nxa5 {[%emt 0:01:26]} 29. Rxa5 {[%emt 0:00:03]} Rd7 {[%emt 0:00:01]} 30. Rea1 {[%emt 0:00:15]} Nc8 {[%emt 0:00:03]} 31. Na3 {[%emt 0:00:43]} Bb4 {[%emt 0:00:25]} 32. Rb5 {[%emt 0:00:20]} Be7 {[%emt 0:02:30]} 33. Nxc4 {[%emt 0:00:07]} Rc7 {[%emt 0:00:01]} 34. Ne5+ {[%emt 0:00:08]} Ke6 {[%emt 0:00:06]} 35. Ra6+ {[%emt 0:00:13]} Bd6 {[%emt 0:00:07]} 36. Rc6 {[%emt 0:00:34]} Nb6 {[%emt 0:00:07]} 37. Rxc7 {[%emt 0:00:14]} Bxc7 {[%emt 0:00:01]} 38. Nc6 {[%emt 0:00:06]} a6 {[%emt 0:00:16]} 39. Rc5 Na4 {[%emt 0:00:15]} 40. Rc2 {[%emt 0:00:31]} Kd6 {[%emt 0:00:02]} 41. Ne5 {[%emt 0:00:07]} Bd8 {[%emt 0:00:46]} 42. b3 {[%emt 0:00:13]} 1-0

[Event "29th Czech Open-Rapid 2018"]
[Site "Pardubice"]
[Date "2018.07.19"]
[Round "4"]
[White "Ret, Adam Josef"]
[Black "Yakimenko, Alexander A"]
[Result "0-1"]
[ECO "E00"]
[WhiteElo "1693"]
[BlackElo "2037"]
[Annotator "NA"]
[PlyCount "52"]
[EventDate "2018.07.18"]
[EventType "swiss"]
[EventCountry "CZE"]
[SourceTitle "playchess.com"]
[Source "ChessBase"]
[SourceQuality "1"]
[TimeControl "900+10"]

1. d4 {[%emt 0:00:00]} e6 {[%emt 0:00:00]} 2. c4 {[%emt 0:00:00]} Nf6 {[%emt 0:00:00]} 3. Nc3 {[%emt 0:00:00]} c5 {[%emt 0:00:00]} 4. e3 {[%emt 0:00:13]} d5 {[%emt 0:00:02]} 5. Nf3 {[%emt 0:00:14]} Nc6 {[%emt 0:00:02]} 6. cxd5 {[%emt 0:01:00]} Nxd5 {[%emt 0:00:24]} 7. Nxd5 {[%emt 0:02:57]} Qxd5 {[%emt 0:00:11]} 8. dxc5 {[%emt 0:00:41]} Qxd1+ {[%emt 0:00:12]} 9. Kxd1 {[%emt 0:00:02]} Bxc5 {[%emt 0:00:04]} 10. Bb5 {[%emt 0:01:49]} Bd7 {[%emt 0:00:10]} 11. Ke2 {[%emt 0:03:02]} a6 {[%emt 0:00:43]} 12. Bd3 {[%emt 0:02:03]} Nb4 {[%emt 0:02:06]} 13. Ne5 {[%emt 0:02:17]} Ba4 {[%emt 0:02:39]} 14. b3 {[%emt 0:00:57]} Bb5 {[%emt 0:02:14]} 15. a3 {[%emt 0:01:45]} Nxd3 {[%emt 0:00:26]} 16. Nxd3 {[%emt 0:00:03]} O-O-O {[%emt 0:00:26]} 17. Rd1 {[%emt 0:00:03]} Rxd3 {[%emt 0:00:04]} 18. Rxd3 {[%emt 0:00:13]} Rd8 {[%emt 0:00:02]} 19. b4 {[%emt 0:00:35]} Bxd3+ {[%emt 0:00:03]} 20. Kf3 {[%emt 0:00:04]} Be7 {[%emt 0:00:08]} 21. Bb2 {[%emt 0:00:04]} Bf6 {[%emt 0:00:04]} 22. Rc1+ {[%emt 0:00:08]} Kb8 {[%emt 0:00:09]} 23. Bxf6 {[%emt 0:00:09]} gxf6 {[%emt 0:00:01]} 24. Rc5 {[%emt 0:00:27]} f5 {[%emt 0:00:09]} 25. h3 {[%emt 0:00:12]} Rc8 {[%emt 0:00:24]} 26. Rxc8+ Kxc8 0-1

[Event "29th Czech Open-Rapid 2018"]
[Site "Pardubice"]
[Date "2018.07.19"]
[Round "4"]
[White "Bueble, Joschua"]
[Black "Slovak, Kilian"]
[Result "0-1"]
[ECO "E83"]
[WhiteElo "1682"]
[BlackElo "2113"]
[Annotator "NA"]
[PlyCount "48"]
[EventDate "2018.07.18"]
[EventType "swiss"]
[EventCountry "CZE"]
[SourceTitle "playchess.com"]
[Source "ChessBase"]
[SourceQuality "1"]
[TimeControl "900+10"]

1. d4 {[%emt 0:07:42]} Nf6 {[%emt 0:00:04]} 2. c4 {[%emt 0:00:02]} g6 {[%emt 0:00:08]} 3. Nc3 {[%emt 0:00:01]} Bg7 {[%emt 0:00:02]} 4. e4 {[%emt 0:00:01]} d6 {[%emt 0:00:01]} 5. f3 {[%emt 0:00:00]} O-O {[%emt 0:00:02]} 6. Be3 {[%emt 0:00:01]} Nc6 {[%emt 0:00:02]} 7. Nge2 {[%emt 0:00:01]} a6 {[%emt 0:00:04]} 8. Qd2 {[%emt 0:00:21]} Bd7 {[%emt 0:00:03]} 9. Rc1 {[%emt 0:00:20]} b5 {[%emt 0:00:02]} 10. cxb5 {[%emt 0:01:11]} axb5 {[%emt 0:00:01]} 11. Nxb5 {[%emt 0:00:26]} Rxa2 {[%emt 0:00:07]} 12. Nec3 {[%emt 0:00:46]} Ra8 {[%emt 0:00:16]} 13. Nd5 {[%emt 0:00:20]} Nxd5 {[%emt 0:01:47]} 14. exd5 {[%emt 0:00:01]} Na5 {[%emt 0:00:01]} 15. Qc3 {[%emt 0:01:28]} c6 {[%emt 0:00:16]} 16. dxc6 {[%emt 0:00:27]} Nxc6 {[%emt 0:00:10]} 17. Bd3 {[%emt 0:00:11]} Qb8 {[%emt 0:01:43]} 18. Be4 {[%emt 0:00:29]} Rc8 {[%emt 0:02:08]} 19. Qb3 {[%emt 0:01:23]} Ra5 {[%emt 0:01:36]} 20. Bd3 {[%emt 0:00:22]} Na7 {[%emt 0:02:13]} 21. Rxc8+ {[%emt 0:00:36]} Bxc8 {[%emt 0:01:27]} 22. Qb4 {[%emt 0:01:51]} Ra1+ {[%emt 0:00:03]} 23. Kf2 {[%emt 0:00:24]} Rxh1 {[%emt 0:00:03]} 24. Qa5 {[%emt 0:00:24]} Be6 0-1

[Event "29th Czech Open-Rapid 2018"]
[Site "Pardubice"]
[Date "2018.07.19"]
[Round "4"]
[White "Zdechovsky, Tobias"]
[Black "Barak, Gil"]
[Result "0-1"]
[ECO "C80"]
[WhiteElo "1675"]
[BlackElo "1946"]
[Annotator "NA"]
[PlyCount "78"]
[EventDate "2018.07.18"]
[EventType "swiss"]
[EventCountry "CZE"]
[SourceTitle "playchess.com"]
[Source "ChessBase"]
[SourceQuality "1"]
[TimeControl "900+10"]

1. e4 {[%emt 0:03:51]} e5 {[%emt 0:00:00]} 2. Nf3 {[%emt 0:00:01]} Nc6 {[%emt 0:00:00]} 3. Bb5 {[%emt 0:00:03]} a6 {[%emt 0:00:00]} 4. Ba4 {[%emt 0:00:01]} Nf6 {[%emt 0:00:00]} 5. O-O {[%emt 0:00:02]} Nxe4 {[%emt 0:00:00]} 6. Re1 {[%emt 0:00:03]} Nc5 {[%emt 0:00:00]} 7. Bxc6 {[%emt 0:00:05]} dxc6 {[%emt 0:00:00]} 8. Nxe5 {[%emt 0:00:13]} Ne6 {[%emt 0:00:26]} 9. b3 {[%emt 0:02:50]} Be7 {[%emt 0:00:05]} 10. Bb2 {[%emt 0:00:01]} O-O {[%emt 0:00:09]} 11. d4 {[%emt 0:00:05]} Bf6 {[%emt 0:00:16]} 12. Na3 {[%emt 0:00:54]} Re8 {[%emt 0:01:30]} 13. c4 {[%emt 0:03:35]} c5 {[%emt 0:02:53]} 14. d5 {[%emt 0:02:12]} Nf8 {[%emt 0:01:43]} 15. f4 {[%emt 0:00:49]} Ng6 {[%emt 0:01:35]} 16. Qf3 {[%emt 0:00:05]} Bd7 {[%emt 0:02:01]} 17. Re2 {[%emt 0:01:15]} b5 {[%emt 0:04:49]} 18. Rae1 {[%emt 0:01:03]} b4 {[%emt 0:00:02]} 19. Nb1 {[%emt 0:00:12]} Be7 {[%emt 0:01:29]} 20. Qf2 {[%emt 0:00:28]} Bd6 {[%emt 0:00:21]} 21. g3 {[%emt 0:00:18]} a5 {[%emt 0:00:09]} 22. f5 {[%emt 0:00:18]} Nxe5 {[%emt 0:00:16]} 23. Bxe5 {[%emt 0:00:01]} f6 {[%emt 0:00:33]} 24. Bxd6 {[%emt 0:00:14]} cxd6 {[%emt 0:00:01]} 25. Qf4 {[%emt 0:00:09]} Re5 {[%emt 0:00:13]} 26. Rxe5 {[%emt 0:00:04]} fxe5 {[%emt 0:00:03]} 27. Qf3 {[%emt 0:00:10]} Qf6 {[%emt 0:00:01]} 28. g4 {[%emt 0:00:13]} g6 {[%emt 0:00:19]} 29. Rf1 {[%emt 0:00:10]} gxf5 {[%emt 0:00:03]} 30. gxf5 {[%emt 0:00:03]} Rf8 {[%emt 0:00:18]} 31. Qg4+ {[%emt 0:00:01]} Kh8 {[%emt 0:00:03]} 32. Qh5 {[%emt 0:00:23]} Bxf5 {[%emt 0:00:18]} 33. Nd2 {[%emt 0:00:05]} Rg8+ {[%emt 0:00:04]} 34. Kh1 Be4+ 35. Nf3 {[%emt 0:00:16]} Rf8 {[%emt 0:00:15]} 36. Kg2 Qf4 {[%emt 0:00:10]} 37. Rf2 {[%emt 0:00:39]} Rg8+ {[%emt 0:00:10]} 38. Kf1 {[%emt 0:00:12]} Bd3+ {[%emt 0:00:03]} 39. Ke1 {[%emt 0:00:09]} Qc1# {[%emt 0:00:02]} 0-1